bitfinex-derivatives/quotes_SOLF0:USTF0_20240820
["timestamp","ask_amount","ask_price","bid_price","bid_amount"]
[1724125584257,0.05219133,145.47,145.45,11.92100164]
[1724125584460,0.05219133,145.47,145.46,11.8755]
[1724125584658,11.1732,145.53,145.46,8.44]
[1724125585056,11.1732,145.53,145.47,3.4353]
[1724125585566,0.05114082,145.51,145.49,0.04760122]
[1724125587060,3.4346,145.5,145.49,0.04760122]
[1724125587663,11.8746,145.5,145.49,0.04760122]
[1724125594362,3.4346,145.5,145.49,0.04760122]
[1724125595569,8.44,145.5,145.41,1.3709]
[1724125595773,8.44,145.47,145.41,1.3709]
[1724125595975,8.44,145.47,145.41,9.8109]
[1724125596272,3.4361,145.44,145.42,3.44533072]
[1724125596461,3.4361,145.44,145.4,1.2515]
[1724125596874,0.05219345,145.43,145.41,3.48020139]
[1724125597169,0.05219345,145.43,145.42,3.38627183]
[1724125603582,0.05219345,145.43,145.41,3.48020139]
[1724125604081,0.05219345,145.43,145.41,6.82928015]
[1724125604275,0.05219345,145.43,145.41,3.39278015]
[1724125604476,0.05219345,145.43,145.42,3.4365]
[1724125605977,0.05219345,145.43,145.41,6.82938015]
[1724125606379,3.48849345,145.43,145.41,3.39278015]
[1724125606575,8.44,145.42,145.34,2.5412]
[1724125606877,8.44,145.42,145.35,8.44]
[1724125607074,0.05219345,145.43,145.36,8.44]
[1724125607271,8.44,145.43,145.36,8.44]
[1724125607577,3.4369,145.41,145.37,3.4375]
[1724125607974,3.48482207,145.41,145.38,0.04929077]
[1724125608276,3.4372,145.39,145.38,0.04929077]
[1724125611783,8.48792207,145.41,145.38,0.04929077]
[1724125612783,3.4372,145.39,145.38,0.04929077]
[1724125628189,3.4372,145.39,145.38,3.48554455]
[1724125628385,3.4372,145.39,145.38,0.04929077]
[1724125628992,3.4372,145.39,145.38,3.46217568]
[1724125629592,3.4377,145.37,145.35,3.438]
[1724125629894,3.4377,145.37,145.35,6.88834383]
[1724125630688,3.4377,145.37,145.35,3.48726017]
[1724125630689,3.48710198,145.37,145.35,3.48726017]
[1724125631188,3.48710198,145.37,145.35,6.9057538]
[1724125631791,3.48710198,145.37,145.35,3.4677538]
[1724125631990,3.48710198,145.37,145.35,0.04926017]
[1724125632191,3.48710198,145.37,145.35,3.42171117]
[1724125632490,3.48710198,145.37,145.35,3.48736017]
[1724125632896,3.48710198,145.37,145.35,6.90276139]
[1724125633290,0.04940198,145.37,145.35,6.90276139]
[1724125633593,0.04940198,145.37,145.36,3.4379]
[1724125638289,0.04940198,145.37,145.35,6.90266139]
[1724125639694,3.48710198,145.37,145.35,6.90266139]
[1724125641905,3.4379,145.36,145.35,0.04926017]
[1724125642598,3.4385,145.34,145.29,9.7527]
[1724125642808,3.4385,145.34,145.29,13.2655899]
[1724125643103,3.4382,145.35,145.31,3.4389]
[1724125643495,0.0443357,145.34,145.32,0.05180323]
[1724125643996,0.0443357,145.34,145.32,3.49060323]
[1724125646005,0.0443357,145.34,145.32,8.49180323]
[1724125646901,0.0443357,145.34,145.33,3.4386]
[1724125649620,0.0443357,145.34,145.33,11.8786]
[1724125653519,3.4375,145.38,145.35,3.438]
[1724125654722,3.48667374,145.38,145.35,3.48185627]
[1724125660936,0.04917374,145.38,145.35,0.04385627]
[1724125661227,0.04917374,145.38,145.35,8.48385627]
[1724125662322,0.04917374,145.38,145.37,3.4377]
[1724125662520,0.04917374,145.38,145.37,6.85116331]
[1724125664016,3.4368,145.41,145.37,6.85116331]
[1724125664017,3.4367,145.42,145.37,11.85346331]
[1724125664420,3.4367,145.42,145.39,3.4372]
[1724125664617,50.45207558,145.45,145.38,8.44]
[1724125664926,50.45207558,145.45,145.4,3.4368]
[1724125665121,0.05046259,145.43,145.4,3.4831656]
[1724125666026,3.48676259,145.43,145.4,3.4831656]
[1724125671933,3.4365,145.42,145.4,0.0463656]
[1724125672139,8.44,145.41,145.4,0.0463656]
[1724125672528,8.44,145.41,145.36,3.4378]
[1724125672833,2.5682,145.44,145.32,19.11778842]
[1724125672834,8.44,145.38,145.32,19.11778842]
[1724125673033,11.8775,145.38,145.34,3.4382]
[1724125673234,11.8775,145.38,145.32,8.44]
[1724125673733,0.04846045,145.36,145.34,0.04589383]
[1724125674834,0.04846045,145.36,145.35,3.4381]
[1724125676728,0.04846045,145.36,145.35,11.8781]
[1724125676930,8.44,145.41,145.36,3.4377]
[1724125677233,3.4372,145.4,145.36,3.4377]
[1724125677929,0.05207001,145.39,145.37,0.05140258]
[1724125681338,3.48927001,145.39,145.37,0.05140258]
[1724125685031,3.4375,145.38,145.37,0.05140258]
[1724125687637,3.48937001,145.39,145.37,0.05140258]
[1724125687941,0.05207001,145.39,145.37,0.05140258]
[1724125688138,0.05207001,145.39,145.38,11.8775]
[1724125688934,0.05207001,145.39,145.38,15.33149071]
[1724125691853,0.05207001,145.39,145.37,6.9444736]
[1724125692145,0.05207001,145.39,145.37,0.05140258]
[1724125692545,0.05207001,145.39,145.37,3.45637109]
[1724125692940,0.05207001,145.39,145.37,0.05140258]
[1724125694947,0.05207001,145.39,145.37,3.53655495]
[1724125695350,0.05207001,145.39,145.37,6.97415495]
[1724125695751,0.05207001,145.39,145.37,3.53655495]
[1724125695945,0.05207001,145.39,145.38,8.44]
[1724125696147,0.05207001,145.39,145.37,3.53655495]
[1724125696349,0.05207001,145.39,145.38,3.4375]
[1724125698053,0.05207001,145.39,145.37,3.48910258]
[1724125698750,0.05207001,145.39,145.37,0.05140258]
[1724125699554,3.4375,145.38,145.37,0.05140258]
[1724125701856,3.48937001,145.39,145.37,0.05140258]
[1724125706061,3.4375,145.38,145.37,0.05140258]
[1724125715164,3.48937001,145.39,145.37,0.05140258]
[1724125719680,3.4375,145.38,145.37,0.05140258]
[1724125723875,3.48937001,145.39,145.37,0.05140258]
[1724125733176,8.44,145.38,145.31,2.5847]
[1724125733685,3.4381,145.36,145.33,3.4384]
[1724125733985,3.4381,145.36,145.31,2.5847]
[1724125734279,3.4381,145.36,145.33,3.4385]
[1724125734580,0.05121461,145.35,145.33,3.4385]
[1724125738175,0.05121461,145.35,145.32,0.04453045]
[1724125738777,0.05121461,145.35,145.33,8.44]
[1724125738980,0.05121461,145.35,145.34,3.4384]
[1724125740986,0.05121461,145.35,145.33,3.4385]
[1724125741575,0.05121461,145.35,145.34,3.4384]
[1724125742987,0.05121461,145.35,145.33,3.4385]
[1724125748993,3.4386,145.33,145.32,0.04453045]
[1724125756501,8.44,145.33,145.27,3.50629385]
[1724125756706,8.44,145.31,145.25,53.27809854]
[1724125757005,3.4392,145.31,145.28,3.4398]
[1724125757601,3.48366812,145.31,145.28,3.48979265]
[1724125767099,0.04446812,145.31,145.28,0.04999265]
[1724125767704,3.48366812,145.31,145.28,3.48979265]
[1724125769112,0.04446812,145.31,145.29,3.4396]
[1724125790521,8.44,145.3,145.28,0.04999265]
[1724125790724,8.44,145.29,145.19,1.386]
[1724125790930,33.76,145.31,145.22,40.97974254]
[1724125791127,8.44,145.27,145.24,3.4406]
[1724125791325,8.44,145.27,145.24,6.91461031]
[1724125791729,8.48675596,145.27,145.24,3.52003744]
[1724125791923,8.48675596,145.27,145.25,3.4405]
[1724125792128,0.04675596,145.27,145.25,3.4405]
[1724125798725,3.48685596,145.27,145.24,6.96073744]
[1724125798931,11.92685596,145.27,145.24,6.96073744]
[1724125799636,11.92685596,145.27,145.24,3.48672713]
[1724125801338,11.92685596,145.27,145.25,3.4405]
[1724125801339,0.04675596,145.27,145.25,3.4405]
[1724125805342,8.44,145.32,145.25,8.44]
[1724125805539,57.67854491,145.33,145.27,8.44]
[1724125806133,3.439,145.32,145.29,3.4394]
[1724125806446,3.48483919,145.32,145.29,3.48391293]
[1724125806942,3.4391,145.31,145.29,0.04451293]
[1724125807147,8.44,145.3,145.29,0.04451293]
[1724125807545,11.8793,145.3,145.29,0.04451293]
[1724125808447,3.4397,145.29,145.23,4.71935975]
[1724125808742,8.44,145.27,145.23,4.71935975]
[1724125809245,8.44,145.27,145.25,3.4404]
[1724125809438,3.4397,145.29,145.25,3.4404]
[1724125809639,0.04922293,145.27,145.25,3.49282046]
[1724125811045,0.04922293,145.27,145.26,3.4403]
[1724125824555,0.04922293,145.27,145.25,0.05242046]
[1724125825551,8.48922293,145.27,145.25,0.05242046]
[1724125825754,11.92932293,145.27,145.25,0.05242046]
[1724125832661,8.44,145.26,145.19,83.31145582]
[1724125832953,8.44,145.23,145.19,1.318]
[1724125833653,11.8811,145.23,145.19,4.7597]
[1724125833857,0.04923216,145.22,145.2,0.05183185]
[1724125837257,3.49053216,145.22,145.2,0.05183185]
[1724125837459,0.04923216,145.22,145.2,0.05183185]
[1724125837758,0.04923216,145.22,145.2,3.49353185]
[1724125838259,3.49053216,145.22,145.2,0.05183185]
[1724125838452,0.04923216,145.22,145.2,0.05183185]
[1724125841769,0.04923216,145.22,145.21,3.4415]
[1724125842061,8.44,145.27,145.2,8.49183185]
[1724125842363,8.44,145.27,145.2,8.44]
[1724125843267,11.8801,145.27,145.23,3.4408]
[1724125843767,0.05221455,145.25,145.23,3.4408]
[1724125844967,8.44,145.24,145.23,3.4408]
[1724125845458,8.44,145.24,145.22,0.04914793]
[1724125845659,8.44,145.23,145.22,0.04914793]
[1724125846968,8.44,145.23,145.17,1.3423]
[1724125847163,24.15211453,145.3,145.17,1.3423]
[1724125847361,8.44,145.21,145.17,1.3423]
[1724125847766,8.44,145.21,145.18,3.4421]
[1724125847963,8.48823381,145.21,145.18,0.05270908]
[1724125848265,0.04823381,145.21,145.18,0.05270908]
[1724125848468,0.04823381,145.21,145.19,8.44]
[1724125849873,0.04823381,145.21,145.2,3.4417]
[1724125853373,8.48823381,145.21,145.18,3.49480908]
[1724125853572,8.48823381,145.21,145.18,0.05270908]
[1724125853872,0.04823381,145.21,145.19,3.4418]
[1724125855379,0.04823381,145.21,145.2,3.4417]
[1724125868191,0.04823381,145.21,145.18,0.05270908]
[1724125869591,0.04823381,145.21,145.2,3.4417]
[1724125873895,1.2558,145.31,145.2,8.44]
[1724125874191,63.57659591,145.52,145.17,1.3423]
[1724125874192,4.734,145.32,145.27,8.44]
[1724125874387,1.3716,145.36,145.28,8.44]
[1724125874590,8.44,145.34,145.28,8.44]
[1724125875092,2.6094,145.38,145.29,8.44]
[1724125875295,0.04499054,145.32,145.3,0.05058867]
[1724125875690,0.04499054,145.32,145.31,3.4391]
[1724125875886,8.44,145.35,145.31,3.4391]
[1724125875887,8.44,145.34,145.31,3.4391]
[1724125876189,0.04773526,145.33,145.31,3.4391]
[1724125877689,0.04773526,145.33,145.32,3.4389]
[1724125881199,0.04773526,145.33,145.3,0.05058867]
[1724125881887,0.04773526,145.33,145.32,3.4389]
[1724125882195,0.04773526,145.33,145.3,0.05058867]
[1724125882388,0.04773526,145.33,145.31,3.4389]
[1724125882584,0.04773526,145.33,145.3,0.05058867]
[1724125883189,0.04773526,145.33,145.31,3.4391]
[1724125883395,0.04773526,145.33,145.3,8.49058867]
[1724125883595,9.7255,145.38,145.31,8.44]
[1724125884296,13.163,145.38,145.33,3.4386]
[1724125884486,13.163,145.38,145.31,8.44]
[1724125884692,0.04758987,145.36,145.33,0.04942815]
[1724125884884,0.04758987,145.36,145.33,3.48792815]
[1724125886490,0.04758987,145.36,145.34,3.4383]
[1724125890807,0.04758987,145.36,145.33,3.48792815]
[1724125892312,0.04758987,145.36,145.34,3.4383]
[1724125893110,0.04758987,145.36,145.33,3.48792815]
[1724125893515,3.48558987,145.36,145.33,3.48792815]
[1724125893815,11.92558987,145.36,145.33,3.48792815]
[1724125894612,8.44,145.35,145.33,0.04942815]
[1724125894816,8.44,145.35,145.26,8.44]
[1724125895114,11.8787,145.33,145.29,3.4394]
[1724125895812,0.04358619,145.32,145.3,0.0497222]
[1724125896019,0.04358619,145.32,145.3,3.4890222]
[1724125896320,3.48258619,145.32,145.3,0.0497222]
[1724125896712,0.04358619,145.32,145.3,0.0497222]
[1724125897620,0.04358619,145.32,145.3,3.4889222]
[1724125898028,0.04358619,145.32,145.3,0.0497222]
[1724125899714,0.04358619,145.32,145.3,3.4890222]
[1724125901021,0.04358619,145.32,145.3,0.0497222]
[1724125902325,0.04358619,145.32,145.3,3.4890222]
[1724125907317,3.4391,145.31,145.3,0.0497222]
[1724125908527,3.48248619,145.32,145.3,0.0497222]
[1724125910031,0.04358619,145.32,145.3,0.0497222]
[1724125910735,0.04358619,145.32,145.3,3.4890222]
[1724125911527,0.04358619,145.32,145.3,0.0497222]
[1724125912733,3.48248619,145.32,145.3,0.0497222]
[1724125913730,0.04358619,145.32,145.3,0.0497222]
[1724125916635,0.04358619,145.32,145.3,8.4897222]
[1724125917530,0.04358619,145.32,145.31,3.4391]
[1724125919436,0.04358619,145.32,145.3,0.0497222]
[1724125920239,0.04358619,145.32,145.3,3.4889222]
[1724125921740,0.04358619,145.32,145.31,3.4391]
[1724125921946,71.08916837,145.38,145.31,3.4391]
[1724125921947,69.80366837,145.38,145.31,8.44]
[1724125922140,78.24366837,145.38,145.32,3.35504678]
[1724125922843,3.438,145.36,145.33,3.4384]
[1724125923034,0.04715759,145.36,145.33,0.0460499]
[1724125923744,0.04715759,145.36,145.34,3.4382]
[1724125923945,0.04715759,145.36,145.33,0.0460499]
[1724125924446,0.04715759,145.36,145.33,3.42835954]
[1724125924640,0.04715759,145.36,145.33,0.0460499]
[1724125925044,0.04715759,145.36,145.33,3.4845499]
[1724125926039,0.04715759,145.36,145.34,3.4383]
[1724125927148,0.04715759,145.36,145.33,3.4845499]
[1724125928244,0.04715759,145.36,145.34,3.4384]
[1724125932249,3.48515759,145.36,145.33,3.4845499]
[1724125932440,8.44,145.35,145.33,0.0460499]
[1724125932843,11.8783,145.35,145.33,0.0460499]
[1724125934353,3.4384,145.34,145.33,0.0460499]
[1724125935850,3.4384,145.34,145.27,1.3663]
[1724125936050,3.4388,145.33,145.27,9.8063]
[1724125936444,8.44,145.35,145.3,3.4392]
[1724125936645,2.6091,145.37,145.3,3.4392]
[1724125936646,8.44,145.33,145.3,3.4392]
[1724125937149,11.92412779,145.33,145.3,3.49183754]
[1724125937353,8.48542779,145.33,145.3,0.05263754]
[1724125937741,3.4389,145.32,145.3,0.05263754]
[1724125938352,3.4391,145.31,145.3,0.05263754]
[1724125939158,3.4389,145.32,145.3,0.05263754]
[1724125958977,3.4391,145.31,145.3,0.05263754]
[1724125963181,8.48542779,145.33,145.3,0.05263754]
[1724125965491,3.4388,145.32,145.3,0.05263754]
[1724125966185,3.48412779,145.33,145.3,3.49183754]
[1724125966389,0.04542779,145.33,145.3,8.49263754]
[1724125966783,0.04542779,145.33,145.32,3.4388]
[1724125968491,0.04542779,145.33,145.31,3.439]
[1724125972883,3.48412779,145.33,145.3,3.49183754]
[1724125973285,0.04542779,145.33,145.3,0.05263754]
[1724125974697,8.44,145.32,145.3,0.05263754]
[1724125975085,11.879,145.32,145.3,0.05263754]
[1724125976100,3.439,145.32,145.3,0.05263754]
[1724125978001,3.48412779,145.33,145.3,0.05263754]
[1724125981601,3.4389,145.32,145.3,0.05263754]
[1724125987012,3.48412779,145.33,145.3,3.49193754]
[1724125996613,3.48412779,145.33,145.3,0.05263754]
[1724125996614,3.439,145.32,145.3,0.05263754]
[1724125997604,3.4391,145.31,145.3,0.05263754]
[1724125997806,8.44,145.31,145.24,3.42229202]
[1724125998004,8.44,145.29,145.23,8.44]
[1724125998209,8.44,145.29,145.24,3.45991348]
[1724125998210,3.4402,145.27,145.24,3.45991348]
[1724125998605,3.4398,145.28,145.25,3.4405]
[1724125998807,3.49206236,145.28,145.25,3.49130013]
[1724126005629,3.4402,145.27,145.25,0.05080013]
[1724126011623,3.4402,145.27,145.25,3.49130013]
[1724126011824,3.4402,145.27,145.25,0.05080013]
[1724126027725,8.49226236,145.28,145.25,0.05080013]
[1724126028023,0.05226236,145.28,145.26,8.44]
[1724126028431,0.05226236,145.28,145.27,3.44]
[1724126029133,227.0,145.4,145.27,9.7581]
[1724126029328,8.44,145.36,145.3,8.44]
[1724126029525,8.44,145.36,145.31,3.41226662]
[1724126030229,3.48977174,145.35,145.32,0.04892804]
[1724126031131,3.48977174,145.35,145.32,3.48772804]
[1724126032937,0.05147174,145.35,145.32,3.48772804]
[1724126033128,0.05147174,145.35,145.32,8.48892804]
[1724126033732,2.7271,145.41,145.33,8.44]
[1724126033926,8.44,145.4,145.33,8.44]
[1724126034124,3.4376,145.38,145.34,3.4382]
[1724126034838,0.05234266,145.37,145.35,0.04487321]
[1724126039141,11.93014266,145.37,145.35,0.04487321]
[1724126042041,3.4379,145.36,145.35,0.04487321]
[1724126049447,3.49014266,145.37,145.35,0.04487321]
[1724126052947,3.49014266,145.37,145.35,3.48297321]
[1724126055245,3.49014266,145.37,145.35,0.04487321]
[1724126055440,11.8779,145.36,145.35,0.04487321]
[1724126062261,11.8779,145.36,145.3,8.44]
[1724126062262,3.4383,145.35,145.3,8.44]
[1724126062567,3.4383,145.35,145.33,3.4386]
[1724126063159,3.49092761,145.35,145.33,3.48798563]
[1724126069174,3.49092761,145.35,145.33,0.04938563]
[1724126069980,11.8784,145.34,145.33,0.04938563]
[1724126070274,8.44,145.34,145.29,1.3558]
[1724126070476,3.4387,145.33,145.3,3.4392]
[1724126071070,3.4387,145.33,145.3,3.48512963]
[1724126072571,3.4385,145.34,145.31,11.879]
[1724126072777,0.05262761,145.35,145.31,11.84318562]
[1724126073375,0.05262761,145.35,145.32,8.44]
[1724126074277,0.05262761,145.35,145.33,3.4384]
[1724126075772,3.49082761,145.35,145.32,3.4387]
[1724126079282,3.49082761,145.35,145.33,3.4386]
[1724126080872,3.49082761,145.35,145.32,3.4387]
[1724126086288,3.4384,145.34,145.31,6.92638217]
[1724126086484,3.4384,145.34,145.31,3.48738217]
[1724126087189,3.49082761,145.35,145.32,3.4388]
[1724126088387,0.05262761,145.35,145.33,3.4386]
[1724126089781,0.05262761,145.35,145.34,3.4384]
[1724126094387,0.05262761,145.35,145.34,11.8784]
[1724126098190,75.89836771,145.39,145.34,11.8784]
[1724126098191,75.89836771,145.39,145.34,8.44]
[1724126098490,75.89836771,145.39,145.35,8.44]
[1724126098686,79.33566771,145.39,145.35,8.44]
[1724126099303,0.04412775,145.38,145.36,3.4377]
[1724126099491,0.04412775,145.38,145.36,3.4828184]
[1724126100301,3.48152775,145.38,145.36,3.4828184]
[1724126100600,3.48152775,145.38,145.36,0.0451184]
[1724126107898,0.04412775,145.38,145.36,3.4830184]
[1724126113302,0.04412775,145.38,145.36,0.0451184]
[1724126113504,14.0459805,145.37,145.27,27.48]
[1724126113799,3.439,145.32,145.29,3.4395]
[1724126114397,3.48535124,145.32,145.29,3.4893345]
[1724126116806,3.4391,145.31,145.29,0.0498345]
[1724126117011,13.9991,145.31,145.29,0.0498345]
[1724126117402,3.4391,145.31,145.29,0.0498345]
[1724126117907,3.48525124,145.32,145.29,3.4893345]
[1724126122208,14.04525124,145.32,145.29,3.4893345]
[1724126125813,13.9991,145.31,145.29,0.0498345]
[1724126128008,10.56,145.31,145.29,3.4893345]
[1724126128213,3.48525124,145.32,145.29,3.4893345]
[1724126129411,0.04635124,145.32,145.29,10.6098345]
[1724126129916,0.04635124,145.32,145.3,3.4392]
[1724126130505,0.04635124,145.32,145.29,3.4892345]
[1724126130711,10.60635124,145.32,145.29,3.4892345]
[1724126131907,14.04525124,145.32,145.29,3.4892345]
[1724126134312,10.60635124,145.32,145.29,0.0498345]
[1724126134818,3.4391,145.31,145.29,0.0498345]
[1724126137321,14.04535124,145.32,145.29,3.4893345]
[1724126143821,0.04635124,145.32,145.3,3.4393]
[1724126148220,3.48515124,145.32,145.3,3.4393]
[1724126148422,14.04515124,145.32,145.3,3.4393]
[1724126150523,14.04515124,145.32,145.29,3.4893345]
[1724126150725,3.4393,145.3,145.29,0.0498345]
[1724126153731,0.04635124,145.32,145.29,3.4892345]
[1724126153924,0.04635124,145.32,145.29,0.0498345]
[1724126154933,3.48535124,145.32,145.3,3.4392]
[1724126155123,3.48535124,145.32,145.29,0.0498345]
[1724126155823,3.48535124,145.32,145.29,3.4892345]
[1724126157831,3.48535124,145.32,145.3,3.4393]
[1724126158135,75.89836771,145.39,145.31,10.56]
[1724126158432,3.4375,145.38,145.33,10.56]
[1724126158635,75.89836771,145.39,145.33,10.56]
[1724126159121,75.89836771,145.39,145.35,3.48514757]
[1724126159122,0.04726934,145.37,145.35,3.48514757]
[1724126160531,0.04726934,145.37,145.36,3.4379]
[1724126160930,0.04726934,145.37,145.35,3.48514757]
[1724126161430,0.04726934,145.37,145.35,10.60714757]
[1724126161637,0.04726934,145.37,145.36,3.4379]
[1724126175444,0.04726934,145.37,145.36,13.9979]
[1724126176238,3.4368,145.41,145.36,10.56]
[1724126176442,2.6666,145.44,145.37,10.56]
[1724126176643,13.2266,145.44,145.37,10.56]
[1724126177338,3.48575919,145.42,145.39,3.48842786]
[1724126177845,3.4369,145.4,145.39,0.05142786]
[1724126178049,13.9969,145.4,145.39,0.05142786]
[1724126180144,13.9968,145.41,145.39,0.05142786]
[1724126182842,3.48555919,145.42,145.39,3.48842786]
[1724126183143,0.04915919,145.42,145.39,3.48842786]
[1724126183846,3.48575919,145.42,145.39,3.48842786]
[1724126184440,3.48575919,145.42,145.4,3.4369]
[1724126185448,0.04915919,145.42,145.4,3.4369]
[1724126193346,3.4367,145.41,145.39,3.48852786]
[1724126193748,3.4367,145.41,145.39,0.05142786]
[1724126195257,3.48555919,145.42,145.39,3.53256595]
[1724126195446,3.48555919,145.42,145.39,0.05142786]
[1724126195951,3.48555919,145.42,145.4,3.49831872]
[1724126196646,0.04915919,145.42,145.4,3.49831872]
[1724126197755,0.04915919,145.42,145.4,6.93521872]
[1724126199560,3.48555919,145.42,145.39,3.48852786]
[1724126199952,3.48555919,145.42,145.39,6.88833965]
[1724126201053,3.48555919,145.42,145.39,17.43833965]
[1724126201361,3.48555919,145.42,145.39,6.88833965]
[1724126208468,0.04915919,145.42,145.39,3.45123965]
[1724126209468,3.48565919,145.42,145.39,6.88823965]
[1724126210170,0.04915919,145.42,145.39,3.45123965]
[1724126210364,0.04915919,145.42,145.4,3.4368]
[1724126213469,3.48565919,145.42,145.39,3.48852786]
[1724126214564,0.04915919,145.42,145.4,3.4369]
[1724126215966,10.55,145.41,145.39,0.05142786]
[1724126216472,13.9868,145.41,145.39,0.05142786]
[1724126217367,14.03565919,145.42,145.39,0.05142786]
[1724126217767,3.48565919,145.42,145.39,0.05142786]
[1724126218876,3.48565919,145.42,145.39,3.48852786]
[1724126223873,3.48565919,145.42,145.39,6.90953507]
[1724126230181,3.48565919,145.42,145.4,3.4369]
[1724126231279,0.04915919,145.42,145.41,3.4367]
[1724126248403,69.40955607,145.46,145.42,3.4362]
[1724126248797,65.97395607,145.46,145.41,10.55]
[1724126248997,3.4354,145.47,145.44,3.4359]
[1724126249408,3.48505523,145.47,145.44,3.47972359]
[1724126252008,0.04965523,145.47,145.44,10.59382359]
[1724126252604,3.4347,145.5,145.44,10.59382359]
[1724126253506,3.4347,145.5,145.47,3.4352]
[1724126253695,0.05295379,145.48,145.47,3.47975906]
[1724126264409,3.4344,145.51,145.47,14.02975906]
[1724126264612,3.4344,145.51,145.48,3.4348]
[1724126265721,0.05169553,145.51,145.48,10.55]
[1724126266216,0.05169553,145.51,145.49,3.4348]
[1724126267727,3.48609553,145.51,145.49,3.4348]
[1724126269524,0.05169553,145.51,145.47,0.04455906]
[1724126269924,3.4347,145.5,145.47,3.47965906]
[1724126280026,10.60169553,145.51,145.47,0.04455906]
[1724126280425,10.55,145.49,145.47,0.04455906]
[1724126280820,3.435,145.48,145.47,0.04455906]
[1724126287028,3.4349,145.49,145.47,0.04455906]
[1724126289633,3.435,145.48,145.47,0.04455906]
[1724126293731,10.55,145.49,145.4,1.2643]
[1724126293938,10.55,145.44,145.4,1.2643]
[1724126294125,68.28484402,145.46,145.38,3.4374]
[1724126294126,10.55,145.43,145.38,3.4374]
[1724126294324,3.4367,145.41,145.38,3.4374]
[1724126294739,13.9867,145.41,145.38,3.4374]
[1724126295831,14.03548456,145.41,145.38,3.4825937]
[1724126297140,3.48548456,145.41,145.38,3.4825937]
[1724126298640,0.04878456,145.41,145.39,3.4371]
[1724126299933,0.04878456,145.41,145.38,0.0451937]
[1724126301742,0.04878456,145.41,145.39,3.38206139]
[1724126302139,0.04878456,145.41,145.39,6.81896139]
[1724126304150,0.04878456,145.41,145.39,3.4369]
[1724126304843,3.48548456,145.41,145.38,3.4823937]
[1724126307646,0.04878456,145.41,145.39,3.4371]
[1724126312747,3.48558456,145.41,145.39,3.4371]
[1724126312949,0.04878456,145.41,145.4,3.4369]
[1724126314149,78.83484402,145.46,145.41,3.4366]
[1724126314453,3.4361,145.44,145.41,3.4366]
[1724126315058,3.48187568,145.44,145.41,3.4871954]
[1724126319156,3.4362,145.43,145.41,3.4871954]
[1724126322460,3.4362,145.43,145.41,0.0505954]
[1724126323560,3.4365,145.42,145.41,0.0505954]
[1724126331363,10.55,145.43,145.36,10.55]
[1724126331364,3.4368,145.41,145.36,10.55]
[1724126332360,0.05058148,145.4,145.38,3.4373]
[1724126337257,0.05058148,145.4,145.39,3.4372]
[1724126337464,0.05058148,145.4,145.39,6.82522372]
[1724126337666,10.55,145.45,145.39,3.38802372]
[1724126337863,10.55,145.45,145.39,10.55]
[1724126338067,3.4362,145.44,145.41,3.4367]
[1724126338769,3.4806036,145.44,145.41,3.48261112]
[1724126347674,3.4364,145.43,145.41,0.04591112]
[1724126370287,3.4364,145.43,145.41,3.48261112]
[1724126372897,3.4805036,145.44,145.41,3.48261112]
[1724126376698,3.4362,145.43,145.41,3.48261112]
[1724126377998,3.4805036,145.44,145.41,3.48261112]
[1724126379993,0.0444036,145.44,145.42,3.4363]
[1724126380197,0.0444036,145.44,145.41,10.59591112]
[1724126380498,0.0444036,145.44,145.42,10.55]
[1724126380701,1.3337,145.53,145.42,10.55]
[1724126380893,10.55,145.51,145.45,10.55]
[1724126381403,3.4349,145.49,145.46,3.4354]
[1724126381597,3.48520725,145.49,145.46,3.4354]
[1724126381901,3.48520725,145.49,145.46,3.48239677]
[1724126382794,0.05030725,145.49,145.48,3.435]
[1724126389800,1.3795,145.54,145.49,3.4346]
[1724126390104,1.3855,145.57,145.49,10.55]
[1724126390310,10.55,145.56,145.49,10.55]
[1724126390807,3.4337,145.54,145.51,3.4342]
[1724126391110,3.47780388,145.54,145.51,3.47764846]
[1724126392203,0.04410388,145.54,145.51,0.04344846]
[1724126392399,10.55,145.58,145.53,3.4339]
[1724126393407,0.05120593,145.57,145.54,0.05059349]
[1724126393808,3.4332,145.56,145.54,0.05059349]
[1724126394313,10.55,145.56,145.54,0.05059349]
[1724126395210,3.4332,145.56,145.54,0.05059349]
[1724126395413,0.05120593,145.57,145.54,0.05059349]